bitfinex-derivatives/quotes_BNBF0:USTF0_20251225
["timestamp","ask_amount","ask_price","bid_price","bid_amount"]
[1766682975190,0.68271429,841.15,840.2,1.7729465]
[1766682975389,55.59817064,841.37,839.93,54.84471408]
[1766682975390,0.68271429,841.14,840.19,1.7729465]
[1766682975594,0.68271429,841.13,840.19,1.7729465]
[1766682975788,0.68271429,841.12,840.19,1.7729465]
[1766682975989,0.68271429,841.11,840.19,1.7729465]
[1766682976190,0.68271429,841.1,840.19,1.7729465]
[1766682976493,0.68271429,841.1,839.59,2.95491084]
[1766682976494,0.68271429,841.09,840.18,1.7729465]
[1766682976701,0.68271429,841.08,840.18,1.7729465]
[1766682976892,0.68271429,841.07,840.18,1.7729465]
[1766682977093,0.68271429,841.06,840.18,1.7729465]
[1766682977294,0.88899811,841.33,840.18,1.7729465]
[1766682977496,0.68152004,841.32,840.18,1.7729465]
[1766682977795,0.68152004,841.31,840.18,1.7729465]
[1766682977995,0.68152004,841.3,840.18,1.7729465]
[1766682978197,0.68152004,841.29,840.18,1.7729465]
[1766682978397,0.68152004,841.28,840.18,1.7729465]
[1766682978597,0.68152004,841.27,840.18,1.7729465]
[1766682978897,0.68152004,841.26,840.18,1.7729465]
[1766682979093,0.68152004,841.25,840.18,1.7729465]
[1766682979297,0.68152004,841.24,840.17,1.7729465]
[1766682979495,0.68152004,841.23,840.17,1.7729465]
[1766682979693,0.68152004,841.22,840.17,1.7729465]
[1766682979892,0.68152004,841.21,840.17,1.7729465]
[1766682980093,0.68152004,841.2,840.17,1.7729465]
[1766682980292,0.68152004,841.19,840.17,1.7729465]
[1766682980595,0.68152004,841.18,840.17,1.7729465]
[1766682980798,0.68152004,841.17,840.17,1.7729465]
[1766682980997,0.68152004,841.16,840.17,1.7729465]
[1766682981199,0.68152004,841.15,840.17,1.7729465]
[1766682981500,0.68152004,841.14,840.17,1.7729465]
[1766682981694,0.68152004,841.13,840.17,1.7729465]
[1766682981899,0.68152004,841.12,840.17,1.7729465]
[1766682982196,0.68152004,841.11,840.17,1.7729465]
[1766682982398,0.68152004,841.1,840.17,1.7729465]
[1766682982599,0.68152004,841.09,840.17,1.7729465]
[1766682982796,0.68152004,841.08,840.17,1.7729465]
[1766682982997,12.72326612,841.16,840.17,1.7729465]
[1766682983199,0.68100432,841.15,840.17,1.7729465]
[1766682983496,0.68100432,841.14,840.17,1.7729465]
[1766682983700,0.68100432,841.13,840.17,1.7729465]
[1766682983899,0.68100432,841.12,840.17,1.7729465]
[1766682984099,12.72326612,841.16,839.33,0.01335587]
[1766682984100,0.68100432,841.11,840.1,1.7729465]
[1766682984299,0.68100432,841.1,840.09,1.7729465]
[1766682984500,0.68100432,841.09,840.09,1.7729465]
[1766682984696,0.68100432,841.08,840.09,1.7729465]
[1766682984897,0.68100432,841.07,840.09,1.7729465]
[1766682985097,0.68100432,841.06,840.09,1.7729465]
[1766682985301,0.68100432,841.05,840.09,1.7729465]
[1766682985502,0.68100432,841.04,840.09,1.7729465]
[1766682985799,0.68100432,841.03,840.08,1.7729465]
[1766682986002,0.68100432,841.02,840.08,1.7729465]
[1766682986202,0.68100432,841.01,840.08,1.7729465]
[1766682986400,0.68070908,841.0,840.06,1.7729465]
[1766682986601,0.88899811,841.27,840.06,1.7729465]
[1766682986796,13.74598105,841.26,840.06,1.7729465]
[1766682987000,0.68070905,841.25,840.06,1.7729465]
[1766682987198,0.68070905,841.24,840.06,1.7729465]
[1766682987398,0.68070905,841.23,840.06,1.7729465]
[1766682987703,0.68070905,841.22,840.06,1.7729465]
[1766682987900,0.68070905,841.21,840.06,1.7729465]
[1766682988102,0.68070905,841.2,840.06,1.7729465]
[1766682988305,0.68070905,841.19,840.05,1.7729465]
[1766682988500,0.68070905,841.18,840.05,1.7729465]
[1766682988705,0.68070905,841.17,840.05,1.7729465]
[1766682988906,0.68070905,841.16,840.05,1.7729465]
[1766682989102,0.68070905,841.15,840.05,1.7729465]
[1766682989302,0.68070905,841.14,840.05,1.7729465]
[1766682989605,0.68070905,841.13,840.05,1.7729465]
[1766682989801,0.68070905,841.12,840.05,1.7729465]
[1766682990003,0.68070905,841.11,840.05,1.7729465]
[1766682990200,0.68070905,841.1,840.05,1.7729465]
[1766682990400,0.68070905,841.09,840.05,1.7729465]
[1766682990606,0.68070905,841.08,840.05,1.7729465]
[1766682990902,0.68070905,841.07,840.05,1.7729465]
[1766682991101,0.68070905,841.06,840.05,1.7729465]
[1766682991302,0.68070905,841.05,840.04,1.7729465]
[1766682991606,0.68070905,841.04,840.04,1.7729465]
[1766682991801,0.68070905,841.03,840.04,1.7729465]
[1766682992003,0.68070905,841.02,840.04,1.7729465]
[1766682992201,0.88899811,841.29,840.04,1.7729465]
[1766682992506,13.77785892,841.28,840.04,1.7729465]
[1766682992702,0.68018254,841.27,840.04,1.7729465]
[1766682993006,0.68018254,841.26,840.04,1.7729465]
[1766682993206,0.68018254,841.25,840.04,1.7729465]
[1766682993405,0.68018254,841.24,840.04,1.7729465]
[1766682993702,0.68018254,841.23,840.04,1.7729465]
[1766682993903,0.68018254,841.22,840.04,1.7729465]
[1766682994106,0.68018254,841.21,840.04,1.7729465]
[1766682994304,0.68018254,841.2,840.04,1.7729465]
[1766682994505,0.68018254,841.19,840.04,1.7729465]
[1766682994708,0.68018254,841.18,840.04,1.7729465]
[1766682994909,0.68018254,841.17,840.04,1.7729465]
[1766682995109,0.68018254,841.16,840.04,1.7729465]
[1766682995309,0.68018254,841.15,840.04,1.7729465]
[1766682995505,0.68018254,841.14,840.04,1.7729465]
[1766682995710,0.68018254,841.13,840.04,1.7729465]
[1766682995907,0.68018254,841.12,840.04,1.7729465]
[1766682996107,0.68018254,841.11,840.04,1.7729465]
[1766682996405,0.68018254,841.1,840.03,1.7729465]
[1766682996611,0.68018254,841.09,840.03,1.7729465]
[1766682996807,0.68018254,841.08,840.03,1.7729465]
[1766682997011,0.68018254,841.07,840.03,1.7729465]
[1766682997209,0.68018254,841.06,840.03,1.7729465]
[1766682997410,0.68018254,841.05,840.03,1.7729465]
[1766682997610,0.68018254,841.04,840.03,1.7729465]
[1766682997814,0.68018254,841.03,840.03,1.7729465]
[1766682998014,0.88899811,841.3,840.03,1.7729465]
[1766682998314,0.67993866,841.29,840.03,1.7729465]
[1766682998512,0.67993866,841.28,840.03,1.7729465]
[1766682998715,0.67993866,841.27,840.03,1.7729465]
[1766682998911,0.67993866,841.26,840.03,1.7729465]
[1766682999110,0.67993866,841.25,840.03,1.7729465]
[1766682999313,0.67993866,841.24,840.03,1.7729465]
[1766682999609,0.67993866,841.23,840.03,1.7729465]
[1766682999810,0.67993866,841.22,840.03,1.7729465]
[1766683000013,0.67993866,841.21,840.03,1.7729465]
[1766683000313,0.67993866,841.2,840.04,1.7729465]
[1766683000514,0.67993866,841.19,840.04,1.7729465]
[1766683000815,0.67993866,841.18,840.04,1.7729465]
[1766683001114,0.67993866,841.17,840.04,1.7729465]
[1766683001308,0.67993866,841.16,840.04,1.7729465]
[1766683001514,0.67993866,841.15,840.04,1.7729465]
[1766683001713,0.67993866,841.14,840.04,1.7729465]
[1766683002016,0.67993866,841.13,840.04,1.7729465]
[1766683002209,0.67993866,841.12,840.04,1.7729465]
[1766683002512,0.67993866,841.11,840.04,1.7729465]
[1766683002710,0.67993866,841.1,840.04,1.7729465]
[1766683002915,0.67993866,841.09,840.04,1.7729465]
[1766683003214,0.67993866,841.08,840.04,1.7729465]
[1766683003413,0.67993866,841.07,840.04,1.7729465]
[1766683003612,0.67993866,841.06,840.04,1.7729465]
[1766683003810,0.67993866,841.05,840.04,1.7729465]
[1766683004014,0.67993866,841.04,840.04,1.7729465]
[1766683004215,0.67993866,841.03,840.04,1.7729465]
[1766683004416,0.67993866,841.02,840.04,1.7729465]
[1766683004616,0.88899811,841.29,840.04,1.7729465]
[1766683004812,0.68014167,841.28,840.04,1.7729465]
[1766683005112,0.68014167,841.27,840.04,1.7729465]
[1766683005316,0.68014167,841.26,840.04,1.7729465]
[1766683005616,0.68014167,841.25,840.04,1.7729465]
[1766683005814,0.68014167,841.24,840.04,1.7729465]
[1766683006118,0.68014167,841.23,840.04,1.7729465]
[1766683006416,0.68014167,841.22,840.05,1.7729465]
[1766683006619,0.68014167,841.21,840.05,1.7729465]
[1766683006918,0.68014167,841.2,840.05,1.7729465]
[1766683007212,0.68014167,841.19,840.05,1.7729465]
[1766683007418,0.68014167,841.18,840.05,1.7729465]
[1766683007614,0.68014167,841.17,840.05,1.7729465]
[1766683007815,0.68014167,841.16,840.05,1.7729465]
[1766683008019,0.68014167,841.15,840.05,1.7729465]
[1766683008216,0.68014167,841.14,840.05,1.7729465]
[1766683008422,0.68014167,841.13,840.05,1.7729465]
[1766683008724,0.68014167,841.12,840.05,1.7729465]
[1766683008926,0.68014167,841.11,840.05,1.7729465]
[1766683009121,0.68014167,841.1,840.05,1.7729465]
[1766683009326,0.68014167,841.09,840.06,1.7729465]
[1766683009521,0.68014167,841.08,840.06,1.7729465]
[1766683009726,0.68014167,841.07,840.06,1.7729465]
[1766683009927,0.68014167,841.06,840.06,1.7729465]
[1766683010124,0.68014167,841.05,840.06,1.7729465]
[1766683010428,0.68014167,841.04,840.06,1.7729465]
[1766683010624,0.68014167,841.03,840.06,1.7729465]
[1766683010828,0.68014167,841.02,840.06,1.7729465]
[1766683011027,0.68014167,841.01,840.06,1.7729465]
[1766683011228,0.68014167,841.0,840.06,1.7729465]
[1766683011529,0.68014167,841.0,839.46,2.95491084]
[1766683011530,0.68014167,840.99,840.07,1.7729465]
[1766683011730,0.88899811,841.26,840.07,10.54192208]
[1766683011930,0.68158497,841.25,840.07,10.54192208]
[1766683012129,0.68158497,841.24,840.07,10.54192208]
[1766683012328,0.68158497,841.23,840.08,1.7729465]
[1766683012530,0.68158497,841.22,840.08,1.7729465]
[1766683012832,0.68158497,841.21,840.08,1.7729465]
[1766683013130,0.68158497,841.2,840.08,1.7729465]
[1766683013328,0.68158497,841.19,840.08,1.7729465]
[1766683013533,0.68158497,841.18,840.08,1.7729465]
[1766683013733,0.68158497,841.17,840.08,1.7729465]
[1766683013934,0.68158497,841.16,840.08,1.7729465]
[1766683014132,0.68158497,841.15,840.08,1.7729465]
[1766683014333,0.68158497,841.14,840.09,1.7729465]
[1766683014531,0.68158497,841.13,840.09,1.7729465]
[1766683014833,0.68158497,841.12,840.09,1.7729465]
[1766683015033,0.68158497,841.11,840.09,1.7729465]
[1766683015233,0.68158497,841.1,840.09,1.7729465]
[1766683015430,0.68158497,841.09,840.11,1.7729465]
[1766683015732,0.68158497,841.08,840.11,1.7729465]
[1766683015933,0.68158497,841.07,840.11,1.7729465]
[1766683016130,0.68158497,841.06,840.11,1.7729465]
[1766683016334,0.68158497,841.05,840.11,1.7729465]
[1766683016635,0.68158497,841.04,840.11,1.7729465]
[1766683016835,0.68158497,841.03,840.11,1.7729465]
[1766683017032,0.68158497,841.02,840.11,1.7729465]
[1766683017236,0.68158497,841.01,840.12,1.7729465]
[1766683017436,0.68158497,841.0,840.12,1.7729465]
[1766683017637,0.68158497,840.99,840.12,1.7729465]
[1766683017937,0.68158497,840.98,840.12,1.7729465]
[1766683018135,0.68158497,840.97,840.12,1.7729465]
[1766683018436,13.49440853,840.96,840.12,1.7729465]
[1766683018632,0.68158497,840.95,840.12,1.7729465]
[1766683020936,0.68260928,840.94,840.12,1.7729465]
[1766683021140,12.81282356,840.96,840.12,1.7729465]
[1766683021341,0.68265016,840.95,840.12,1.7729465]
[1766683021540,0.68265016,840.94,840.12,1.7729465]
[1766683021741,12.81282356,840.96,840.12,1.7729465]
[1766683022041,0.68265016,840.95,840.12,1.7729465]
[1766683022239,0.68265016,840.94,840.13,1.7729465]
[1766683022436,0.68265016,840.93,840.13,1.7729465]
[1766683022638,0.88830032,841.2,840.13,1.7729465]
[1766683022941,0.68272899,841.19,840.13,1.7729465]
[1766683023242,0.68272899,841.18,840.13,1.7729465]
[1766683023537,0.68272899,841.17,840.13,1.7729465]
[1766683023737,0.68272899,841.16,840.13,1.7729465]
[1766683023940,0.88830032,841.2,840.13,1.7729465]
[1766683023941,0.68272899,841.15,840.13,1.7729465]
[1766683024142,0.68272899,841.14,840.13,1.7729465]
[1766683024342,0.68272899,841.13,840.13,1.7729465]
[1766683024536,0.68272899,841.12,840.13,1.7729465]
[1766683024740,0.68272899,841.11,840.13,1.7729465]
[1766683024940,0.68272899,841.1,840.13,1.7729465]
[1766683025138,0.68272899,841.09,840.13,1.7729465]
[1766683025442,0.68272899,841.08,840.14,1.7729465]
[1766683025737,0.68272899,841.07,840.14,1.7729465]
[1766683025942,0.68272899,841.06,840.14,1.7729465]
[1766683026237,0.68272899,841.05,840.14,1.7729465]
[1766683026441,0.68272899,841.04,840.14,1.7729465]
[1766683026640,0.68272899,841.03,840.14,1.7729465]
[1766683026841,0.88830032,841.19,840.14,1.7729465]
[1766683026842,0.68272899,841.02,840.14,1.7729465]
[1766683027038,0.68272899,841.01,840.14,1.7729465]
[1766683027240,0.68272899,841.0,840.14,1.7729465]
[1766683027441,0.68272899,840.99,840.15,1.7729465]
[1766683027641,0.68272899,840.98,840.15,1.7729465]
[1766683027841,0.68272899,840.97,840.15,1.7729465]
[1766683028142,0.68272899,840.96,840.15,1.7729465]
[1766683028443,0.68272899,840.95,840.16,1.7729465]
[1766683028642,0.68272899,840.94,840.16,1.7729465]
[1766683028841,0.68272899,840.93,840.16,1.7729465]
[1766683029041,0.68272899,840.92,840.16,1.7729465]
[1766683029240,0.68272899,840.91,840.16,1.7729465]
[1766683029542,0.88830032,841.17,840.16,1.7729465]
[1766683029543,0.68272899,840.9,840.16,1.7729465]
[1766683029742,0.88830032,841.17,840.16,1.7729465]
[1766683029939,0.6827979,841.16,840.16,1.7729465]
[1766683030141,0.88830032,841.17,840.16,1.7729465]
[1766683030142,0.6827979,841.15,840.16,1.7729465]
[1766683030337,0.6827979,841.14,840.16,1.7729465]
[1766683030538,0.6827979,841.13,840.16,1.7729465]
[1766683030741,0.6827979,841.12,840.16,1.7729465]
[1766683030940,0.6827979,841.11,840.16,1.7729465]
[1766683031141,0.6827979,841.1,840.16,1.7729465]
[1766683031340,0.6827979,841.09,840.17,1.7729465]
[1766683031540,0.6827979,841.08,840.17,1.7729465]
[1766683031842,0.6827979,841.07,840.17,1.7729465]
[1766683032040,0.6827979,841.06,840.17,10.81856293]
[1766683032245,0.6827979,841.05,840.17,10.81856293]
[1766683032540,0.6827979,841.04,840.17,10.81856293]
[1766683032744,0.6827979,841.03,840.17,9.04561643]
[1766683032944,0.6827979,841.02,840.17,9.04561643]
[1766683033242,0.6827979,841.01,840.17,9.04561643]
[1766683033446,0.6827979,841.0,840.17,9.04561643]
[1766683033644,0.6827979,840.99,840.17,9.04561643]
[1766683033845,0.6827979,840.98,840.17,9.04561643]
[1766683034046,0.6827979,840.97,840.17,9.04561643]
[1766683034244,0.6827979,840.96,840.17,9.04561643]
[1766683034542,0.6827979,840.95,840.17,9.04561643]
[1766683034745,0.6827979,840.94,840.17,9.04561643]
[1766683035041,0.6827979,840.93,840.17,9.04561643]
[1766683035242,0.6827979,840.92,840.14,1.7729465]
[1766683035443,0.6827979,840.91,840.14,1.7729465]
[1766683035645,0.6827979,840.9,840.14,1.7729465]
[1766683035842,0.6827979,840.89,840.14,1.7729465]
[1766683036146,0.88830032,841.16,840.14,1.7729465]
[1766683036443,0.68276796,841.15,840.14,1.7729465]
[1766683036646,0.68276796,841.14,840.14,1.7729465]
[1766683036846,0.68276796,841.13,840.14,1.7729465]
[1766683037046,0.68276796,841.12,840.14,1.7729465]
[1766683037243,0.68276796,841.11,840.14,1.7729465]
[1766683037546,0.88830032,841.16,840.14,1.7729465]
[1766683037547,0.68276796,841.1,840.14,1.7729465]
[1766683037847,0.68276796,841.09,840.14,1.7729465]
[1766683038048,0.68276796,841.08,840.14,1.7729465]
[1766683038344,0.88830032,841.05,840.03,1.7729465]
[1766683038546,0.68276796,841.04,840.03,1.7729465]
[1766683038747,0.68276796,841.03,840.03,1.7729465]
[1766683038943,0.68276796,841.02,840.03,1.7729465]
[1766683039148,0.68276796,841.01,840.02,1.7729465]
[1766683039344,0.68276796,841.0,840.02,1.7729465]
[1766683039545,0.68276796,840.99,840.02,1.7729465]
[1766683039743,0.68276796,840.98,840.02,1.7729465]
[1766683039943,0.68276796,840.97,840.02,1.7729465]
[1766683040143,0.68276796,840.96,840.01,1.7729465]
[1766683040445,0.68276796,840.95,840.01,1.7729465]
[1766683040643,0.68276796,840.94,840.01,1.7729465]
[1766683040844,0.68276796,840.93,840.0,1.7729465]
[1766683041048,0.68276796,840.92,840.0,1.7729465]
[1766683041244,0.68276796,840.91,839.99,1.7729465]
[1766683041449,0.68276796,840.9,839.99,1.7729465]
[1766683041643,0.68276796,840.89,839.99,1.7729465]
[1766683041943,0.68276796,840.88,839.99,1.7729465]
[1766683042146,0.68276796,840.87,839.99,1.7729465]
[1766683042342,0.68276796,840.86,839.98,1.7729465]
[1766683042547,0.68276796,840.85,839.98,1.7729465]
[1766683042747,0.68276796,840.84,839.98,1.7729465]
[1766683043047,0.68276796,840.83,839.98,1.7729465]
[1766683043246,0.68276796,840.82,839.96,1.7729465]
[1766683043446,0.68276796,840.81,839.93,1.7729465]
[1766683043643,0.68276796,840.8,839.93,1.7729465]
[1766683043847,0.68276796,840.79,839.93,1.7729465]
[1766683044046,0.68276796,840.78,839.93,1.7729465]
[1766683044245,0.68276796,840.77,839.9,1.7729465]
[1766683044449,0.68276796,840.76,839.9,1.7729465]
[1766683044651,0.88830032,841.03,839.9,1.7729465]
[1766683044846,0.68028959,841.02,839.9,1.7729465]
[1766683045050,0.68028959,841.01,839.9,1.7729465]
[1766683045251,0.68028959,841.0,839.9,1.7729465]
[1766683045451,0.68028959,840.99,839.9,1.7729465]
[1766683045751,0.68028959,840.98,839.9,1.7729465]
[1766683045951,0.68028959,840.97,839.9,1.7729465]
[1766683046149,0.68028959,840.96,839.89,1.7729465]
[1766683046355,0.68028959,840.95,839.89,1.7729465]
[1766683046554,0.68028959,840.94,839.89,1.7729465]
[1766683046752,0.68028959,840.93,839.89,1.7729465]
[1766683046950,0.68028959,840.92,839.89,1.7729465]
[1766683047253,0.68028959,840.91,839.88,1.7729465]
[1766683047553,0.68028959,840.9,839.88,1.7729465]
[1766683047753,0.68028959,840.89,839.88,1.7729465]
[1766683047953,0.68028959,840.88,839.88,1.7729465]
[1766683048154,0.68028959,840.87,839.88,1.7729465]
[1766683048348,0.68028959,840.86,839.86,1.7729465]
[1766683048554,0.68028959,840.85,839.86,1.7729465]
[1766683048751,0.68028959,840.84,839.86,1.7729465]
[1766683048951,0.68028959,840.83,839.86,1.7729465]
[1766683049151,0.68028959,840.82,839.86,1.7729465]
[1766683049456,0.68028959,840.81,839.86,1.7729465]
[1766683049651,0.68028959,840.8,839.86,1.7729465]
[1766683049851,0.68028959,840.79,839.86,1.7729465]
[1766683050056,0.68028959,840.78,839.86,1.7729465]
[1766683050256,13.15349992,840.84,839.85,1.7729465]
[1766683050452,0.67975255,840.83,839.85,1.7729465]
[1766683050656,0.67975255,840.82,839.85,1.7729465]
[1766683050858,0.67975255,840.81,839.85,1.7729465]
[1766683051153,0.67975255,840.8,839.67,1.7729465]
[1766683051354,0.67975255,840.79,839.65,1.7729465]
[1766683051559,0.67975255,840.78,839.65,1.7729465]
[1766683051854,0.67975255,840.77,839.65,1.7729465]
[1766683052054,0.67975255,840.76,839.65,1.7729465]
[1766683052252,0.67975255,840.75,839.64,1.7729465]
[1766683052458,0.67975255,840.74,839.64,1.7729465]
[1766683052754,0.67975255,840.73,839.64,1.7729465]
[1766683053058,0.67975255,840.72,839.64,1.7729465]
[1766683053257,0.67975255,840.71,839.62,1.7729465]
[1766683053458,0.67975255,840.7,839.62,1.7729465]
[1766683053653,0.67975255,840.69,839.62,1.7729465]
[1766683053854,54.69496704,840.81,839.62,1.7729465]
[1766683053855,0.67975255,840.68,839.62,1.7729465]
[1766683054052,0.67975255,840.67,839.62,1.7729465]
[1766683054256,0.67975255,840.66,839.61,1.7729465]
[1766683054455,54.69496704,840.81,839.61,1.7729465]
[1766683054658,0.67851951,840.8,839.61,1.7729465]
[1766683054854,0.67851951,840.79,839.61,1.7729465]
[1766683055052,0.67851951,840.78,839.61,1.7729465]
[1766683055257,0.67851951,840.77,839.6,1.7729465]
[1766683055454,0.67851951,840.76,839.6,1.7729465]
[1766683055658,0.67851951,840.75,839.6,1.7729465]
[1766683055959,0.67851951,840.74,839.61,1.7729465]
[1766683056156,0.67851951,840.73,839.61,1.7729465]
[1766683056354,0.67851951,840.72,839.6,1.7729465]
[1766683056557,12.8857714,840.8,839.69,1.7729465]
[1766683056754,0.67824344,840.79,839.69,1.7729465]
[1766683056958,0.67824344,840.78,839.69,1.7729465]
[1766683057158,0.67824344,840.77,839.68,1.7729465]
[1766683057359,12.8857714,840.8,839.68,1.7729465]
[1766683057559,0.67821344,840.79,839.68,1.7729465]
[1766683057856,0.67821344,840.78,839.68,1.7729465]
[1766683058154,0.67821344,840.77,839.68,1.7729465]
[1766683058359,55.26896204,840.94,839.68,1.7729465]
[1766683058559,0.67816491,840.93,839.68,1.7729465]
[1766683058856,0.67816491,840.92,839.68,1.7729465]
[1766683059057,0.67816491,840.91,839.68,1.7729465]
[1766683059253,0.67816491,840.9,839.68,1.7729465]
[1766683059455,0.67816491,840.89,839.68,1.7729465]
[1766683059757,0.67816491,840.88,839.68,1.7729465]
[1766683059955,0.67816491,840.87,839.68,1.7729465]
[1766683060153,0.67816491,840.86,839.68,1.7729465]
[1766683060356,0.67816491,840.85,839.7,1.7729465]
[1766683060559,0.67816491,840.84,839.71,1.7729465]
[1766683060855,0.67816491,840.83,839.71,1.7729465]
[1766683061060,0.67816491,840.82,839.71,1.7729465]
[1766683061360,0.67816491,840.81,839.71,1.7729465]
[1766683061560,0.88830032,841.08,839.71,1.7729465]
[1766683061760,0.67824502,841.07,839.71,1.7729465]
[1766683062060,0.67824502,841.06,839.71,1.7729465]
[1766683062259,0.67824502,841.05,839.71,1.7729465]
[1766683062458,0.67824502,841.04,839.71,1.7729465]
[1766683062654,0.67824502,841.03,839.71,1.7729465]
[1766683062861,0.67824502,841.02,839.71,1.7729465]
[1766683063060,0.67824502,841.01,839.71,1.7729465]
[1766683063260,0.67824502,841.0,839.71,1.7729465]
[1766683063560,0.67824502,840.99,839.71,1.7729465]
[1766683063859,0.67824502,840.98,839.71,1.7729465]
[1766683064060,0.67824502,840.97,839.71,1.7729465]
[1766683064258,0.67824502,840.96,839.71,1.7729465]
[1766683064461,0.67824502,840.95,839.71,1.7729465]
[1766683064759,0.67824502,840.94,839.71,1.7729465]
[1766683064958,0.67824502,840.93,839.71,1.7729465]
[1766683065161,13.56563123,840.92,839.71,1.7729465]
[1766683065355,0.67824502,840.91,839.71,1.7729465]
[1766683067261,0.67824502,840.91,839.72,1.7729465]
[1766683068163,0.67857384,840.9,839.72,1.7729465]
[1766683068357,0.67857384,840.89,839.72,1.7729465]
[1766683068562,0.67857384,840.88,839.72,1.7729465]
[1766683068861,0.67857384,840.87,839.72,1.7729465]
[1766683069058,0.67857384,840.86,839.72,1.7729465]
[1766683069358,0.67857384,840.85,839.72,1.7729465]
[1766683069662,0.67857384,840.84,839.72,1.7729465]
[1766683069857,0.67857384,840.83,839.72,1.7729465]
[1766683072162,0.67857384,840.83,839.73,1.7729465]
[1766683073661,0.67857384,840.82,839.73,1.7729465]
[1766683073964,0.67857384,840.81,839.73,1.7729465]
[1766683074161,0.67857384,840.8,839.74,1.7729465]
[1766683074363,0.67857384,840.79,839.74,1.7729465]
[1766683074561,0.67857384,840.78,839.74,1.7729465]
[1766683074861,0.8852877,841.05,839.74,1.7729465]
[1766683075066,0.679498,841.04,839.74,1.7729465]
[1766683075261,0.679498,841.03,839.74,1.7729465]
[1766683075465,0.679498,841.02,839.74,1.7729465]
[1766683075762,0.679498,841.01,839.74,1.7729465]
[1766683075964,0.679498,841.0,839.74,1.7729465]
[1766683076164,0.679498,841.0,839.75,1.7729465]
[1766683076362,0.679498,840.99,839.75,1.7729465]
[1766683076561,0.679498,840.98,839.75,1.7729465]
[1766683076766,0.679498,840.97,839.75,1.7729465]
[1766683077062,0.679498,840.96,839.75,1.7729465]
[1766683077263,0.679498,840.95,839.75,1.7729465]
[1766683077464,0.679498,840.94,839.75,1.7729465]
[1766683077662,0.679498,840.93,839.75,1.7729465]
[1766683077867,0.679498,840.92,839.75,1.7729465]
[1766683078064,0.679498,840.91,839.75,1.7729465]
[1766683078268,1.18823642,841.18,839.15,2.95491084]
[1766683078269,0.679498,840.9,839.76,1.7729465]
[1766683078569,0.679498,840.89,839.76,1.7729465]
[1766683078769,0.679498,840.88,839.76,10.7280768]
[1766683078967,0.679498,840.87,839.76,10.7280768]
[1766683079168,0.679498,840.86,839.77,1.7729465]
[1766683079365,0.679498,840.85,839.77,1.7729465]
[1766683079574,0.679498,840.84,839.77,1.7729465]
[1766683079767,0.20701717,840.73,839.77,1.7729465]
[1766683081174,0.20701717,840.73,839.78,1.7729465]
[1766683082076,0.68069271,840.72,839.78,1.7729465]
[1766683082274,0.20701717,840.73,839.79,1.7729465]
[1766683082573,0.68071527,840.72,839.79,1.7729465]
[1766683082773,0.20701717,840.73,839.79,1.7729465]
[1766683082972,0.68071523,840.72,839.79,1.7729465]
[1766683083176,0.68092408,840.71,839.8,1.7729465]
[1766683083375,0.20701717,840.73,839.8,1.7729465]
[1766683083573,0.68094429,840.72,839.8,1.7729465]
[1766683083874,0.68094429,840.71,839.8,1.7729465]
[1766683084176,0.20701717,840.73,839.81,1.7729465]
[1766683084373,0.68102412,840.72,839.81,1.7729465]
[1766683084576,0.68102412,840.71,839.81,1.7729465]
[1766683084774,0.20701717,840.73,839.81,1.7729465]
[1766683085072,0.68102412,840.72,839.81,1.7729465]
[1766683085376,0.68102412,840.71,839.81,1.7729465]
[1766683085577,0.68102412,840.7,839.81,1.7729465]
[1766683085878,0.20701717,840.73,839.81,1.7729465]
[1766683086073,0.68111217,840.72,839.81,1.7729465]
[1766683086376,0.68111217,840.71,839.82,1.7729465]
[1766683086573,0.68111217,840.7,839.82,1.7729465]
[1766683086773,0.20701717,840.73,839.82,1.7729465]
[1766683086973,0.68119614,840.72,839.82,1.7729465]
[1766683087172,0.68119614,840.71,839.82,1.7729465]
[1766683087374,0.68119614,840.7,839.82,1.7729465]
[1766683087573,0.68119614,840.69,839.82,1.7729465]
[1766683087778,0.20701286,840.82,839.82,1.7729465]
[1766683088078,13.56064089,840.81,839.82,1.7729465]
[1766683088278,0.68128928,840.8,839.83,1.7729465]
[1766683088478,0.68128928,840.79,839.83,1.7729465]
[1766683088674,0.68128928,840.78,839.83,1.7729465]
[1766683088877,0.68128928,840.77,839.9,1.7729465]
[1766683089179,0.68128928,840.76,839.91,1.7729465]
[1766683089376,12.87935161,840.81,839.9,1.7729465]
[1766683089574,0.68145089,840.8,839.68,1.7729465]
[1766683089773,0.68145089,840.79,839.76,1.7729465]
[1766683090078,0.68145089,840.78,839.76,1.7729465]
[1766683090278,0.68145089,840.77,839.76,1.7729465]
[1766683090577,0.68145089,840.76,839.76,1.7729465]
[1766683090873,12.87935161,840.81,839.76,1.7729465]
[1766683090874,0.68145089,840.75,839.76,1.7729465]
[1766683091078,0.68145089,840.74,839.76,1.7729465]
[1766683091379,0.68145089,840.73,839.77,1.7729465]
[1766683091571,0.68145089,840.72,839.77,1.7729465]
[1766683091777,0.68145089,840.71,839.77,1.7729465]
[1766683091974,0.68145089,840.7,839.77,1.7729465]
[1766683092276,0.68145089,840.69,839.77,1.7729465]
[1766683092473,0.68145089,840.68,839.77,1.7729465]
[1766683092774,0.68145089,840.67,839.77,1.7729465]
[1766683092977,0.68145089,840.66,839.77,1.7729465]